fUST/lending_fUST_20250901
["ID","MTS","AMOUNT","RATE_DAILY","PERIOD"]
[382662096,1756698662698,-480.0,0.00016921,2]
[382662097,1756698662708,-542.74,0.00016921,2]
[382662098,1756698662718,-15525.34650703,0.00016922,2]
[382662099,1756698662727,-922.0,0.00016973,2]
[382662100,1756698662737,-922.0,0.00016974,2]
[382662101,1756698662746,-800.0,0.00016982,2]
[382662102,1756698662756,-800.0,0.00016988,2]
[382662103,1756698662766,-151.0,0.00017,2]
[382662104,1756698662775,-3327.01,0.00017,2]
[382662105,1756698662784,-588.93,0.00017,2]
[382662106,1756698662794,-1361.19,0.00017,2]
[382662107,1756698662803,-386.39176517,0.00017,2]
[382662108,1756698662812,-4714.97,0.00017,2]
[382662109,1756698662822,-740.37,0.00017,2]
[382662110,1756698662831,-1102.76,0.00017,2]
[382662111,1756698662843,-4873.15,0.00017,2]
[382662112,1756698662852,-4621.05,0.00017,2]
[382662113,1756698662861,-1926.67,0.00017,2]
[382662114,1756698662871,-480.0,0.00017,2]
[382662115,1756698662880,-541.23,0.00017,2]
[382662116,1756698662889,-480.0,0.00017,2]
[382662117,1756698662899,-1405.48,0.00017,2]
[382662118,1756698662908,-3234.33,0.00017,2]
[382662119,1756698662917,-922.0,0.0001701,2]
[382662120,1756698662926,-922.0,0.00017017,2]
[382662121,1756698662936,-181.0,0.00017019,2]
[382662122,1756698662945,-1000.0,0.00017021,2]
[382662123,1756698662954,-1016.376904,0.00017021,2]
[382662124,1756698662964,-1000.0,0.00017021,2]
[382662125,1756698662974,-1000.0,0.00017021,2]
[382662126,1756698662984,-1000.0,0.00017021,2]
[382662127,1756698662994,-1000.0,0.00017021,2]
[382662128,1756698663004,-1000.0,0.00017021,2]
[382662129,1756698663013,-404.0945111,0.00017021,2]
[382662130,1756698663023,-1000.0,0.00017021,2]
[382662131,1756698663036,-1000.0,0.00017021,2]
[382662132,1756698663051,-1000.0,0.00017021,2]
[382662133,1756698663061,-1000.0,0.00017021,2]
[382662134,1756698663070,-1000.0,0.00017021,2]
[382662135,1756698663081,-714.91044673,0.00017021,2]
[382662136,1756698663091,-1000.0,0.00017021,2]
[382662137,1756698663100,-525.08306546,0.00017021,2]
[382662138,1756698663110,-753.8454926,0.00017021,2]
[382662139,1756698663123,-501.55060446,0.00017021,2]
[382662140,1756698663134,-752.53007301,0.00017021,2]
[382662141,1756698663144,-501.24293084,0.00017021,2]
[382662142,1756698663202,-1001.36695083,0.00017021,2]
[382662143,1756698663213,-500.62811217,0.00017021,2]
[382662144,1756698663223,-1000.0,0.00017021,2]
[382662145,1756698663233,-151.0,0.00017021,2]
[382662146,1756698663243,-224.043853,0.00017021,2]
[382662147,1756698663252,-542.89,0.00017021,2]
[382662148,1756698663262,-480.0,0.00017021,2]
[382662149,1756698663271,-937.06,0.00017021,2]
[382662150,1756698663281,-480.0,0.00017021,2]
[382662151,1756698663290,-480.0,0.00017021,2]
[382662152,1756698663301,-576.22,0.00017021,2]
[382662153,1756698663311,-760.89,0.00017021,2]
[382662154,1756698663321,-501.77,0.00017021,2]
[382662155,1756698663330,-1197.04,0.00017021,2]
[382662156,1756698663339,-480.0,0.00017021,2]
[382662157,1756698663348,-310.72329907,0.00017021,2]
[382662158,1756698663357,-480.0,0.00017021,2]
[382662159,1756698663370,-480.0,0.00017021,2]
[382662160,1756698663379,-480.0,0.00017021,2]
[382662161,1756698663389,-480.0,0.00017021,2]
[382662162,1756698663397,-480.0,0.00017021,2]
[382662163,1756698663406,-194.02137911,0.00017021,2]
[382662164,1756698663415,-1028.93,0.00017021,2]
[382662165,1756698663425,-490.28,0.00017021,2]
[382662166,1756698663434,-1145.66,0.00017021,2]
[382662167,1756698663445,-480.0,0.00017021,2]
[382662168,1756698663455,-480.0,0.00017021,2]
[382662169,1756698663465,-1103.54,0.00017021,2]
[382662170,1756698663475,-480.0,0.00017021,2]
[382662171,1756698663485,-480.0,0.00017021,2]
[382662172,1756698663495,-1023.86,0.00017021,2]
[382662173,1756698663504,-480.0,0.00017021,2]
[382662174,1756698663514,-766.44,0.00017021,2]
[382662175,1756698663524,-159.919406,0.00017021,2]
[382662176,1756698663534,-480.0,0.00017021,2]
[382662177,1756698663543,-524.7,0.00017021,2]
[382662178,1756698663553,-1031.4,0.00017021,2]
[382662179,1756698663563,-480.0,0.00017021,2]
[382662180,1756698663572,-1112.37,0.00017021,2]
[382662181,1756698663582,-716.09,0.00017021,2]
[382662182,1756698663591,-151.0,0.00017021,2]
[382662183,1756698663601,-151.0,0.00017021,2]
[382662184,1756698663610,-531.45,0.00017021,2]
[382662185,1756698663621,-151.0,0.00017021,2]
[382662186,1756698663631,-151.0,0.00017021,2]
[382662187,1756698663641,-480.0,0.00017021,2]
[382662188,1756698663651,-480.0,0.00017021,2]
[382662189,1756698663660,-989.83,0.00017021,2]
[382662190,1756698663671,-1003.19,0.00017021,2]
[382662191,1756698663681,-480.0,0.00017021,2]
[382662192,1756698663691,-1038.38,0.00017021,2]
[382662193,1756698663700,-480.0,0.00017021,2]
[382662194,1756698663710,-480.0,0.00017021,2]
[382662195,1756698663720,-823.01,0.00017021,2]
[382662196,1756698663730,-480.0,0.00017021,2]
[382662197,1756698663739,-1188.28,0.00017021,2]
[382662198,1756698663748,-480.0,0.00017021,2]
[382662199,1756698663758,-543.66,0.00017021,2]
[382662200,1756698663767,-958.25,0.00017021,2]
[382662201,1756698663777,-689.14,0.00017021,2]
[382662202,1756698663786,-726.77,0.00017021,2]
[382662203,1756698663795,-151.0,0.00017021,2]
[382662204,1756698663805,-1267.17,0.00017021,2]
[382662205,1756698663814,-480.0,0.00017021,2]
[382662206,1756698663825,-296.855791,0.00017021,2]
[382662207,1756698663835,-984.8,0.00017021,2]
[382662208,1756698663844,-575.05,0.00017021,2]
[382662209,1756698663854,-480.0,0.00017021,2]
[382662210,1756698663864,-480.0,0.00017021,2]
[382662211,1756698663873,-278.677164,0.00017021,2]
[382662212,1756698663883,-278.677164,0.00017021,2]
[382662213,1756698663892,-480.0,0.00017021,2]
[382662214,1756698663901,-278.677164,0.00017021,2]
[382662215,1756698663911,-168.636159,0.00017021,2]
[382662216,1756698663920,-278.677161,0.00017021,2]
[382662217,1756698663930,-564.48,0.00017021,2]
[382662218,1756698663939,-749.95,0.00017021,2]
[382662219,1756698663948,-886.93,0.00017021,2]
[382662220,1756698663958,-1010.1,0.00017021,2]
[382662221,1756698663968,-480.0,0.00017021,2]
[382662222,1756698663978,-1422.64,0.00017021,2]
[382662223,1756698663987,-151.0,0.00017021,2]
[382662224,1756698663996,-151.0,0.00017021,2]
[382662225,1756698664006,-151.0,0.00017021,2]
[382662226,1756698664015,-480.0,0.00017021,2]
[382662227,1756698664025,-480.0,0.00017021,2]
[382662228,1756698664036,-828.01,0.00017021,2]
[382662229,1756698664048,-480.0,0.00017021,2]
[382662230,1756698664057,-486.34,0.00017021,2]
[382662231,1756698664067,-480.0,0.00017021,2]
[382662232,1756698664076,-480.0,0.00017021,2]
[382662233,1756698664086,-666.57,0.00017021,2]
[382662234,1756698664095,-480.0,0.00017021,2]
[382662235,1756698664104,-160.604832,0.00017021,2]
[382662236,1756698664116,-160.604832,0.00017021,2]
[382662237,1756698664125,-608.43,0.00017021,2]
[382662238,1756698664134,-160.604832,0.00017021,2]
[382662239,1756698664144,-1388.5,0.00017021,2]
[382662240,1756698664153,-160.604839,0.00017021,2]
[382662241,1756698664162,-480.0,0.00017021,2]
[382662242,1756698664173,-1140.41,0.00017021,2]
[382662243,1756698664184,-637.91,0.00017021,2]
[382662244,1756698664194,-957.9,0.00017021,2]
[382662245,1756698664203,-578.69,0.00017021,2]
[382662246,1756698664213,-736.6,0.00017021,2]
[382662247,1756698664222,-1186.87,0.00017021,2]
[382662248,1756698664233,-629.35,0.00017021,2]
[382662249,1756698664243,-480.0,0.00017021,2]
[382662250,1756698664252,-654.54,0.00017021,2]
[382662251,1756698664261,-543.73,0.00017021,2]
[382662252,1756698664269,-551.46,0.00017021,2]
[382662253,1756698664278,-480.0,0.00017021,2]
[382662254,1756698664287,-706.3,0.00017021,2]
[382662255,1756698664296,-1235.23,0.00017021,2]
[382662256,1756698664305,-480.0,0.00017021,2]
[382662257,1756698664314,-480.0,0.00017021,2]
[382662258,1756698664325,-487.7,0.00017021,2]
[382662259,1756698664334,-480.0,0.00017021,2]
[382662260,1756698664343,-672.25,0.00017021,2]
[382662261,1756698664352,-480.0,0.00017021,2]
[382662262,1756698664362,-480.0,0.00017021,2]
[382662263,1756698664372,-817.97,0.00017021,2]
[382662264,1756698664383,-790.18,0.00017021,2]
[382662265,1756698664393,-1017.43,0.00017021,2]
[382662266,1756698664402,-480.0,0.00017022,2]
[382662267,1756698664412,-484.44,0.00017022,2]
[382662268,1756698664421,-480.0,0.00017022,2]
[382662269,1756698664431,-524.64,0.00017022,2]
[382662270,1756698664440,-480.0,0.00017022,2]
[382662271,1756698664450,-480.0,0.00017022,2]
[382662272,1756698664460,-1097.43,0.00017022,2]
[382662273,1756698664470,-487.37,0.00017022,2]
[382662274,1756698664480,-480.0,0.00017022,2]
[382662275,1756698664490,-480.0,0.00017022,2]
[382662276,1756698664499,-1017.23,0.00017022,2]
[382662277,1756698664509,-480.0,0.00017022,2]
[382662278,1756698664519,-799.51,0.00017022,2]
[382662279,1756698664528,-480.0,0.00017022,2]
[382662280,1756698664538,-480.0,0.00017022,2]
[382662281,1756698664548,-602.11,0.00017022,2]
[382662282,1756698664558,-480.0,0.00017022,2]
[382662283,1756698664568,-480.0,0.00017022,2]
[382662284,1756698664577,-480.0,0.00017022,2]
[382662285,1756698664587,-480.0,0.00017022,2]
[382662286,1756698664597,-480.0,0.00017022,2]
[382662287,1756698664607,-647.77,0.00017022,2]
[382662288,1756698664617,-480.0,0.00017022,2]
[382662289,1756698664627,-591.96021485,0.00017022,2]
[382662290,1756698664637,-480.0,0.00017022,2]
[382662291,1756698664647,-480.0,0.00017022,2]
[382662292,1756698664657,-480.0,0.00017022,2]
[382662293,1756698664667,-480.0,0.00017022,2]
[382662294,1756698664676,-480.0,0.00017022,2]
[382662295,1756698664688,-480.0,0.00017022,2]
[382662296,1756698664698,-418.73002565,0.00017022,2]
[382662297,1756698664708,-480.0,0.00017022,2]
[382662298,1756698664718,-480.0,0.00017022,2]
[382662299,1756698664727,-481.97117126,0.00017022,2]
[382662300,1756698664738,-480.0,0.00017022,2]
[382662301,1756698664748,-480.0,0.00017022,2]
[382662302,1756698664758,-480.0,0.00017022,2]
[382662303,1756698664767,-480.0,0.00017022,2]
[382662304,1756698664777,-715.24,0.00017022,2]
[382662305,1756698664787,-480.0,0.00017022,2]
[382662306,1756698664796,-151.0,0.00017022,2]
[382662307,1756698664805,-151.0,0.00017022,2]
[382662308,1756698664814,-151.0,0.00017022,2]
[382662309,1756698664824,-480.0,0.00017022,2]
[382662310,1756698664833,-151.0,0.00017022,2]
[382662311,1756698664843,-480.0,0.00017022,2]
[382662312,1756698664853,-157.92674,0.00017022,2]
[382662313,1756698664862,-157.92674,0.00017022,2]
[382662314,1756698664871,-480.0,0.00017022,2]
[382662315,1756698664881,-157.92674,0.00017022,2]
[382662316,1756698664890,-480.0,0.00017022,2]
[382662317,1756698664899,-157.92674,0.00017022,2]
[382662318,1756698664909,-809.58,0.00017022,2]
[382662319,1756698664919,-887.12,0.00017022,2]
[382662320,1756698664929,-155.579698,0.00017022,2]
[382662321,1756698664938,-480.0,0.00017022,2]
[382662322,1756698664947,-543.41,0.00017022,2]
[382662323,1756698664957,-480.0,0.00017022,2]
[382662324,1756698664966,-480.0,0.00017022,2]
[382662325,1756698664975,-151.0,0.00017022,2]
[382662326,1756698664986,-151.0,0.00017022,2]
[382662327,1756698664996,-480.0,0.00017022,2]
[382662328,1756698665006,-480.0,0.00017022,2]
[382662329,1756698665015,-151.0,0.00017022,2]
[382662330,1756698665025,-480.0,0.00017022,2]
[382662331,1756698665038,-1178.81,0.00017022,2]
[382662332,1756698665049,-879.22,0.00017022,2]
[382662333,1756698665059,-480.0,0.00017022,2]
[382662334,1756698665069,-480.0,0.00017022,2]
[382662335,1756698665078,-543.27,0.00017022,2]
[382662336,1756698665088,-500.0,0.00017022,2]
[382662337,1756698665097,-151.0,0.00017022,2]
[382662338,1756698665106,-195.389863,0.00017022,2]
[382662339,1756698665118,-480.0,0.00017022,2]
[382662340,1756698665128,-480.0,0.00017022,2]
[382662341,1756698665138,-151.0,0.00017022,2]
[382662342,1756698665147,-151.0,0.00017022,2]
[382662343,1756698665157,-151.0,0.00017022,2]
[382662344,1756698665166,-480.0,0.00017022,2]
[382662345,1756698665175,-159.342596,0.00017022,2]
[382662346,1756698665184,-159.342596,0.00017022,2]
[382662347,1756698665194,-159.342596,0.00017022,2]
[382662348,1756698665204,-159.342596,0.00017022,2]
[382662349,1756698665214,-725.39,0.00017022,2]
[382662350,1756698665225,-661.15,0.00017022,2]
[382662351,1756698665235,-1023.05,0.00017022,2]
[382662352,1756698665246,-195.93906689,0.00017022,2]
[382662353,1756698665257,-654.22,0.00017022,2]
[382662354,1756698665268,-557.18,0.00017022,2]
[382662355,1756698665278,-480.0,0.00017022,2]
[382662356,1756698665289,-488.71,0.00017022,2]
[382662357,1756698665298,-480.0,0.00017022,2]
[382662358,1756698665308,-480.0,0.00017022,2]
[382662359,1756698665318,-480.0,0.00017022,2]
[382662360,1756698665327,-480.0,0.00017022,2]
[382662361,1756698665337,-480.0,0.00017022,2]
[382662362,1756698665347,-909.72,0.00017022,2]
[382662363,1756698665356,-480.0,0.00017022,2]
[382662364,1756698665366,-951.76,0.00017022,2]
[382662365,1756698665375,-480.0,0.00017022,2]
[382662366,1756698665385,-641.9,0.00017022,2]
[382662367,1756698665395,-987.58,0.00017022,2]
[382662368,1756698665404,-480.0,0.00017022,2]
[382662369,1756698665414,-480.0,0.00017022,2]
[382662370,1756698665424,-480.0,0.00017022,2]
[382662371,1756698665433,-535.19,0.00017022,2]
[382662372,1756698665443,-920.63,0.00017022,2]
[382662373,1756698665453,-590.08286174,0.00017022,2]
[382662374,1756698665463,-1658.98,0.00017022,2]
[382662375,1756698665473,-480.0,0.00017022,2]
[382662376,1756698665482,-480.0,0.00017022,2]
[382662377,1756698665492,-480.0,0.00017022,2]
[382662378,1756698665503,-480.0,0.00017022,2]
[382662379,1756698665513,-466.03785895,0.00017022,2]
[382662380,1756698665522,-480.0,0.00017022,2]
[382662381,1756698665532,-669.76,0.00017022,2]
[382662382,1756698665542,-657.94,0.00017022,2]
[382662383,1756698665552,-480.0,0.00017022,2]
[382662384,1756698665561,-480.0,0.00017022,2]
[382662385,1756698665571,-559.48,0.00017022,2]
[382662386,1756698665581,-480.0,0.00017022,2]
[382662387,1756698665591,-1351.81,0.00017022,2]
[382662388,1756698665601,-482.33626038,0.00017022,2]
[382662389,1756698665616,-480.0,0.00017022,2]
[382662390,1756698665625,-617.74,0.00017022,2]
[382662391,1756698665635,-480.0,0.00017022,2]
[382662392,1756698665646,-480.0,0.00017022,2]
[382662393,1756698665655,-488.84,0.00017022,2]
[382662394,1756698665665,-480.0,0.00017022,2]
[382662395,1756698665675,-794.32,0.00017022,2]
[382662396,1756698665685,-480.0,0.00017022,2]
[382662397,1756698665699,-806.86,0.00017022,2]
[382662398,1756698665711,-480.0,0.00017022,2]
[382662399,1756698665721,-826.34,0.00017022,2]
[382662400,1756698665731,-845.56866262,0.00017047,2]
[382662401,1756698665740,-845.56866262,0.00017047,2]
[382662402,1756698665750,-500.0,0.00017077,2]
[382662403,1756698665759,-922.0,0.00017085,2]
[382662404,1756698665769,-500.0,0.00017113,3]
[382662405,1756698665779,-261.86565476,0.00017113,3]
[382662406,1756698665788,-1493.0,0.00017113,3]
[382662407,1756698665798,-480.0,0.00017117,2]
[382662408,1756698665809,-523.29,0.00017117,2]
[382662409,1756698665819,-697.94,0.00017117,2]
[382662410,1756698665828,-925.83,0.00017117,2]
[382662411,1756698665839,-480.0,0.00017117,2]
[382662412,1756698665849,-480.0,0.00017117,2]
[382662413,1756698665860,-2147.31,0.00017117,2]
[382662414,1756698665873,-480.0,0.00017117,2]
[382662415,1756698665883,-480.0,0.00017117,2]
[382662416,1756698665893,-511.69,0.00017117,2]
[382662417,1756698665903,-522.98,0.00017117,2]
[382662418,1756698665912,-594.8,0.00017117,2]
[382662419,1756698665922,-1144.22,0.00017117,2]
[382662420,1756698665932,-480.0,0.00017117,2]
[382662421,1756698665943,-647.07,0.00017117,2]
[382662422,1756698665953,-480.0,0.00017117,2]
[382662423,1756698665962,-523.13,0.00017117,2]
[382662424,1756698665972,-480.0,0.00017117,2]
[382662425,1756698665982,-1985.9,0.00017117,2]
[382662426,1756698665993,-614.68,0.00017117,2]
[382662427,1756698666002,-432.33251964,0.00017117,2]
[382662428,1756698666012,-529.5,0.00017117,2]
[382662429,1756698666021,-1673.09,0.00017117,2]
[382662430,1756698666031,-480.0,0.00017117,2]
[382662431,1756698666043,-876.96,0.00017117,2]
[382662432,1756698666053,-480.0,0.00017121,2]
[382662433,1756698666063,-480.0,0.00017121,2]
[382662434,1756698666072,-480.0,0.00017121,2]
[382662435,1756698666083,-365.96116254,0.00017121,2]
[382662436,1756698666092,-729.96,0.00017121,2]
[382662437,1756698666101,-480.0,0.00017121,2]
[382662438,1756698666111,-480.0,0.00017121,2]
[382662439,1756698666124,-480.0,0.00017121,2]
[382662440,1756698666133,-480.0,0.00017121,2]
[382662441,1756698666143,-480.0,0.00017121,2]
[382662442,1756698666152,-480.0,0.00017121,2]
[382662443,1756698666162,-480.0,0.00017121,2]
[382662444,1756698666172,-480.0,0.00017121,2]
[382662445,1756698666182,-480.0,0.00017121,2]
[382662446,1756698666192,-824.76,0.00017121,2]
[382662447,1756698666201,-480.0,0.00017121,2]
[382662448,1756698666211,-480.0,0.00017121,2]
[382662449,1756698666221,-558.98692058,0.00017121,2]
[382662450,1756698666231,-480.0,0.00017121,2]
[382662451,1756698666241,-817.07,0.00017121,2]
[382662452,1756698666252,-480.0,0.00017121,2]
[382662453,1756698666263,-480.0,0.00017121,2]
[382662454,1756698666273,-852.22,0.00017121,2]
[382662455,1756698666284,-480.0,0.00017121,2]
[382662456,1756698666293,-480.0,0.00017121,2]
[382662457,1756698666304,-480.0,0.00017121,2]
[382662458,1756698666313,-480.0,0.00017121,2]
[382662459,1756698666324,-1177.63,0.00017121,2]
[382662460,1756698666334,-480.0,0.00017121,2]
[382662461,1756698666343,-480.0,0.00017121,2]
[382662462,1756698666353,-559.92,0.00017121,2]
[382662463,1756698666363,-590.99159166,0.00017121,2]
[382662464,1756698666374,-480.0,0.00017121,2]
[382662465,1756698666383,-678.6,0.00017121,2]
[382662466,1756698666393,-205.36542853,0.00017121,2]
[382662467,1756698666403,-480.0,0.00017121,2]
[382662468,1756698666413,-1119.48,0.00017121,2]
[382662469,1756698666423,-480.0,0.00017121,2]
[382662470,1756698666433,-480.0,0.00017121,2]
[382662471,1756698666443,-480.0,0.00017121,2]
[382662472,1756698666453,-480.0,0.00017121,2]
[382662473,1756698666463,-543.33,0.00017121,2]
[382662474,1756698666473,-480.0,0.00017121,2]
[382662475,1756698666482,-480.0,0.00017121,2]
[382662476,1756698666493,-740.21,0.00017121,2]
[382662477,1756698666502,-679.18,0.00017121,2]
[382662478,1756698666515,-583.03,0.00017121,2]
[382662479,1756698666526,-480.0,0.00017121,2]
[382662480,1756698666536,-480.0,0.00017121,2]
[382662481,1756698666695,-480.0,0.00017121,2]
[382662482,1756698666706,-591.25,0.00017121,2]
[382662483,1756698666715,-480.0,0.00017121,2]
[382662484,1756698666727,-480.0,0.00017121,2]
[382662485,1756698666738,-1190.69,0.00017121,2]
[382662486,1756698666748,-480.0,0.00017121,2]
[382662487,1756698666759,-411.95930605,0.00017121,2]
[382662488,1756698666772,-480.0,0.00017121,2]
[382662489,1756698666782,-480.0,0.00017122,2]
[382662490,1756698666792,-480.0,0.00017122,2]
[382662491,1756698666803,-480.0,0.00017122,2]
[382662492,1756698666812,-480.0,0.00017122,2]
[382662493,1756698666822,-549.86,0.00017122,2]
[382662494,1756698666833,-151.0,0.00017122,2]
[382662495,1756698666845,-294.511964,0.00017122,2]
[382662496,1756698666855,-480.0,0.00017123,2]
[382662497,1756698666865,-589.94,0.00017123,2]
[382662498,1756698666875,-151.0,0.00017123,2]
[382662499,1756698666884,-304.76388619,0.00017123,2]
[382662500,1756698666894,-480.0,0.00017123,2]
[382662501,1756698666903,-686.54,0.00017123,2]
[382662502,1756698666915,-578.74,0.00017123,2]
[382662503,1756698666926,-480.0,0.00017123,2]
[382662504,1756698666935,-4029.45136891,0.00017123,2]
[382662505,1756698666944,-574.56,0.00017123,2]
[382662506,1756698666953,-187.5331483,0.00017176,2]
[382662507,1756698666962,-922.0,0.00017186,2]
[382662508,1756698666973,-154.442497,0.00017186,2]
[382662509,1756698666982,-154.304176,0.00017186,2]
[382662510,1756698666991,-2303.69007698,0.00017189,2]
[382662511,1756698667001,-480.0,0.00017194,2]
[382662512,1756698667011,-601.1838662,0.00017194,2]
[382662513,1756698667020,-480.0,0.00017194,2]
[382662514,1756698667029,-775.81,0.00017194,2]
[382662515,1756698667041,-480.0,0.00017194,2]
[382662516,1756698667052,-1107.17,0.00017194,2]
[382662517,1756698667062,-480.0,0.00017195,2]
[382662518,1756698667071,-888.74,0.00017195,2]
[382662519,1756698667080,-480.0,0.00017195,2]
[382662520,1756698667092,-480.0,0.00017195,2]
[382662521,1756698667102,-480.0,0.00017195,2]
[382662522,1756698667111,-480.0,0.00017195,2]
[382662523,1756698667122,-542.74,0.00017195,2]
[382662524,1756698667131,-151.0,0.000172,2]
[382662525,1756698667141,-500.0,0.00017203,2]
[382662526,1756698667151,-500.0,0.00017203,2]
[382662527,1756698667162,-500.0,0.00017203,2]
[382662528,1756698667172,-201.0285033,0.00017203,2]
[382662529,1756698667182,-500.0,0.00017203,2]
[382662530,1756698667191,-500.0,0.00017203,2]
[382662531,1756698667201,-501.59222352,0.00017203,2]
[382662532,1756698667211,-160.46472062,0.00017203,2]
[382662533,1756698667220,-500.0,0.00017203,2]
[382662534,1756698667230,-500.0,0.00017203,2]
[382662535,1756698667239,-500.0,0.00017203,2]
[382662536,1756698667248,-500.0,0.00017203,2]
[382662537,1756698667258,-500.0,0.00017203,2]
[382662538,1756698667267,-560.23204304,0.00017203,2]
[382662539,1756698667276,-500.0,0.00017203,2]
[382662540,1756698667287,-1004.18607815,0.00017268,2]
[382662541,1756698667297,-1500.0,0.00017268,2]
[382662542,1756698667307,-1500.0,0.00017268,2]
[382662543,1756698667318,-1509.31406478,0.00017268,2]
[382662544,1756698667329,-1500.0,0.00017268,2]
[382662545,1756698667338,-1500.0,0.00017268,2]
[382662546,1756698667348,-1307.14855952,0.00017268,2]
[382662547,1756698667359,-508.08558205,0.00017268,2]
[382662548,1756698667368,-1232.8871344,0.00017268,2]
[382662549,1756698667663,-267.1128656,0.00017268,2]
[382662550,1756698667672,-1500.0,0.00017268,2]
[382662551,1756698667681,-3327.01,0.00017274,2]
[382662552,1756698667691,-588.93,0.00017274,2]
[382662553,1756698667700,-1361.19,0.00017274,2]
[382662554,1756698667709,-4714.97,0.00017274,2]
[382662555,1756698667718,-740.37,0.00017274,2]
[382662556,1756698667727,-1102.76,0.00017274,2]
[382662557,1756698667736,-4873.15,0.00017274,2]
[382662558,1756698667746,-4621.05,0.00017274,2]
[382662559,1756698667755,-1926.67,0.00017274,2]
[382662560,1756698667764,-480.0,0.00017274,2]
[382662561,1756698667773,-541.23,0.00017274,2]
[382662562,1756698667782,-480.0,0.00017274,2]
[382662563,1756698667791,-1405.48,0.00017274,2]
[382662564,1756698667801,-3234.33,0.00017274,2]
[382662565,1756698667810,-542.89,0.00017295,2]
[382662566,1756698667819,-480.0,0.00017295,2]
[382662567,1756698667828,-937.06,0.00017295,2]
[382662568,1756698667837,-480.0,0.00017295,2]
[382662569,1756698667847,-480.0,0.00017295,2]
[382662570,1756698667857,-576.22,0.00017295,2]
[382662571,1756698667868,-760.89,0.00017295,2]
[382662572,1756698667877,-501.77,0.00017295,2]
[382662573,1756698667887,-1197.04,0.00017295,2]
[382662574,1756698667897,-480.0,0.00017295,2]
[382662575,1756698667908,-480.0,0.00017295,2]
[382662576,1756698667919,-480.0,0.00017295,2]
[382662577,1756698667928,-480.0,0.00017295,2]
[382662578,1756698667937,-480.0,0.00017295,2]
[382662579,1756698667946,-480.0,0.00017295,2]
[382662580,1756698667955,-1028.93,0.00017295,2]
[382662581,1756698667964,-1145.66,0.00017295,2]
[382662582,1756698667973,-480.0,0.00017295,2]
[382662583,1756698667982,-151.0,0.00017295,2]
[382662584,1756698667991,-480.0,0.00017295,2]
[382662585,1756698668001,-1103.54,0.00017295,2]
[382662586,1756698668011,-480.0,0.00017295,2]
[382662587,1756698668020,-480.0,0.00017295,2]
[382662588,1756698668031,-151.0,0.00017295,2]
[382662589,1756698668043,-151.0,0.00017295,2]
[382662590,1756698668052,-173.006902,0.00017295,2]
[382662591,1756698668062,-1023.86,0.00017295,2]
[382662592,1756698668071,-480.0,0.00017295,2]
[382662593,1756698668082,-159.342596,0.00017295,2]
[382662594,1756698668090,-159.342596,0.00017295,2]
[382662595,1756698668099,-159.342596,0.00017295,2]